fUSD/lending_fUSD_20240416
["ID","MTS","AMOUNT","RATE_DAILY","PERIOD"]
[322791231,1713299442810,-1706.74473637,0.00018627,2]
[322791232,1713299442822,-618.81483229,0.00018627,2]
[322791233,1713299442979,-7783.68926124,0.00018627,2]
[322791234,1713299442991,-4744.13953944,0.00018627,2]
[322791235,1713299443006,-344.10978337,0.00018627,2]
[322791236,1713299443021,-925.50594997,0.00018627,2]
[322791237,1713299443033,-427.149998,0.00018627,2]
[322791238,1713299443045,-1502.81579274,0.00018627,2]
[322791239,1713299443438,-4771.5037443,0.00018627,2]
[322791240,1713299443450,-843.85812906,0.00018627,2]
[322791241,1713299443463,-2818.49682764,0.00018627,2]
[322791242,1713299443474,-1279.21809271,0.00018627,2]
[322791245,1713299445662,-567.37440311,0.00017998,2]
[322791246,1713299445672,-3397.24240836,0.00017998,2]
[322791247,1713299445682,-1241.03910676,0.00018626,2]
[322791248,1713299445691,-4486.40366859,0.00018627,2]
[322791249,1713299445701,-541.17402353,0.0001867,2]
[322791250,1713299445711,-200.0,0.00018697,2]
[322791251,1713299445720,-8773.10174058,0.00018733,2]
[322791252,1713299445730,-167.02,0.00018744,2]
[322791253,1713299445739,-316.88457777,0.00018757,2]
[322791254,1713299445748,-541.17402353,0.000188,2]
[322791255,1713299445757,-2244.59548352,0.000188,2]
[322791256,1713299445766,-7494.8184562,0.000188,2]
[322791257,1713299445775,-25950.59406651,0.00018809,2]
[322791258,1713299445787,-20219.15950118,0.00018809,2]
[322791259,1713299445796,-660.0,0.00018822,2]
[322791260,1713299445806,-26904.77480497,0.0001888,2]
[322791261,1713299445822,-1483.51196557,0.0001888,2]
[322791262,1713299445882,-265.57556743,0.0001816,2]
[322791264,1713299630132,500.0,0.00032247,30]
[322791265,1713299692102,500.0,0.00032155,30]
[322791266,1713299692156,500.0,0.00032155,30]
[322791267,1713299692422,500.0,0.00032155,30]
[322791268,1713299692688,500.0,0.00032155,30]
[322791269,1713299692958,500.0,0.00032155,30]
[322791270,1713299693212,168.95218347,0.00032155,30]
[322791271,1713299801534,20691.94866968,0.00032155,30]
[322791272,1713300131772,-1241.03910676,0.00015828,2]
[322791273,1713300131794,-244.25184656,0.00015829,2]
[322791274,1713300131818,-684.03,0.00015831,2]
[322791275,1713300131841,-504.0,0.00017431,2]
[322791276,1713300131863,-200.0,0.00017608,2]
[322791277,1713300131885,-3489.15,0.00017772,2]
[322791278,1713300131911,-23900.0,0.00017773,2]
[322791279,1713300131934,-496.0,0.00017773,2]
[322791280,1713300131958,-2438.67,0.00017811,2]
[322791281,1713300131981,-250.0,0.00017811,2]
[322791282,1713300132003,-409.94,0.00017811,2]
[322791283,1713300132025,-6620.2614635,0.00017891,2]
[322791284,1713300132047,-22935.65758318,0.00017892,2]
[322791285,1713300144145,155.37,0.00026572,120]
[322791286,1713300245589,1164.96,0.00032155,30]
[322791293,1713300631752,-649.82,0.00015705,2]
[322791294,1713300631762,-25.52496719,0.00017465,2]
[322791295,1713300631774,-131.10503281,0.00017465,2]
[322791296,1713300631785,-173.98,0.00017585,2]
[322791297,1713300631794,-596.8,0.00017603,2]
[322791298,1713300631804,-641.96032824,0.00017608,2]
[322791311,1713300637908,-983.47967176,0.00017608,2]
[322791312,1713300637918,-204.97,0.0001764,2]
[322791313,1713300637927,-155.37,0.00017715,2]
[322791314,1713300637936,-23900.0,0.00017811,2]
[322791315,1713300637945,-66075.80421682,0.00017892,2]
[322791316,1713300637954,-649.82,0.00017969,2]
[322791317,1713300637964,-499.99,0.00017994,2]
[322791318,1713300637972,-726.81127524,0.00017998,2]
[322791319,1713300637981,-155.0,0.00018,2]
[322791320,1713300637990,-150.0,0.00018027,2]
[322791321,1713300637999,-612.0,0.00018083,2]
[322791322,1713300638008,-1111.2,0.000181,2]
[322791323,1713300638017,-408.21,0.000181,2]
[322791324,1713300638026,-784.23096667,0.00018159,2]
[322791325,1713300638035,-160.81941679,0.00018159,2]
[322791326,1713300638044,-237.67976016,0.00018159,2]
[322791327,1713300638053,-1392.0,0.00018248,2]
[322791328,1713300638062,-2292.0,0.00018248,2]
[322791330,1713300638071,-968.0,0.00018248,2]
[322791332,1713300638080,-461.0,0.00018248,2]
[322791334,1713300638089,-541.0,0.00018248,2]
[322791336,1713300638098,-1254.0,0.00018248,2]
[322791338,1713300638107,-1327.546,0.00018248,2]
[322791339,1713300638116,-436.0,0.00018248,2]
[322791340,1713300638125,-1949.0,0.00018248,2]
[322791341,1713300638134,-807.0,0.00018248,2]
[322791342,1713300638142,-609.0,0.00018248,2]
[322791343,1713300638151,-2442.0,0.00018248,2]
[322791344,1713300638162,-3078.0,0.00018248,2]
[322791345,1713300638170,-399.0,0.00018248,2]
[322791346,1713300638179,-1472.0,0.00018248,2]
[322791347,1713300638188,-1638.0,0.00018248,2]
[322791348,1713300638197,-214.0,0.00018248,2]
[322791349,1713300638206,-443.0,0.00018248,2]
[322791351,1713300638215,-355.0,0.00018248,2]
[322791353,1713300638224,-2703.0,0.00018248,2]
[322791355,1713300638233,-5887.0,0.00018248,2]
[322791358,1713300638241,-1054.0,0.00018248,2]
[322791360,1713300638250,-1294.72320102,0.00018626,2]
[322791362,1713300638259,-4417.08125605,0.0001868,2]
[322791363,1713300638267,-62886.5218846,0.0001868,2]
[322791364,1713300638279,-450.74000003,0.0001868,2]
[322791365,1713300639822,-289.80987371,0.0001868,2]
[322791366,1713300640098,-28764.91094105,0.0001868,2]
[322791367,1713300640109,-190.2044831,0.0001878,2]
[322791368,1713300640119,-23534.18468264,0.0001878,2]
[322791369,1713300640128,-171.25463459,0.0001878,2]
[322791370,1713300640138,-169.28650163,0.0001878,2]
[322791371,1713300640148,-316.88457783,0.0001878,2]
[322791372,1713300640157,-185.41458989,0.0001878,2]
[322791373,1713300640168,-909.83999457,0.0001878,2]
[322791374,1713300640176,-490.0,0.000188,2]
[322791375,1713300640185,-4417.08125599,0.00018816,2]
[322791376,1713300640194,-92391.98269931,0.00018816,2]
[322791377,1713300640204,-169.28650159,0.00018855,2]
[322791378,1713300640213,-3155.417159,0.00018874,2]
[322791379,1713300640223,-1443.258173,0.00018874,2]
[322791380,1713300640232,-162.6935854,0.00018874,2]
[322791381,1713300640241,-37834.206231,0.00018874,2]
[322791382,1713300640250,-242.11931668,0.00018878,2]
[322791383,1713300640260,-181562.84739823,0.0001888,2]
[322791384,1713300640748,-360.33344827,0.0001888,2]
[322791385,1713300640759,-399.80330002,0.0001888,2]
[322791388,1713300643139,-1000.87999974,0.0001888,2]
[322791389,1713300643150,-704.733448,0.0001888,2]
[322791390,1713300643162,-10225.84575615,0.0001888,2]
[322791392,1713300643548,-4778.56233376,0.0001888,2]
[322791393,1713300643570,-4273.37742655,0.0001888,2]
[322791394,1713300643581,-376.72925219,0.0001888,2]
[322791403,1713300645936,-395.47249323,0.00018135,2]
[322791404,1713300645989,-783.36581766,0.00018135,2]
[322791405,1713300646150,-1271.9135338,0.00018135,2]
[322791406,1713300646164,-20460.31815531,0.00018135,2]
[322791407,1713300646173,-223.772,0.00018248,2]
[322791408,1713300646182,-41544.04527851,0.0001888,2]
[322791409,1713300646193,-2926.86567756,0.0001888,2]
[322791410,1713300646205,-202080.90098935,0.0001888,2]
[322791411,1713300646216,-304968.96003378,0.0001888,2]
[322791412,1713300715922,51524.86307843,0.0001539,2]
[322791413,1713300752014,442.40237444,0.00032154,30]
[322791414,1713300798060,645.12345445,0.00032154,30]
[322791415,1713300807431,1752.10600067,0.00014159,2]
[322791416,1713300831917,3485.02054558,0.00028,30]
[322791417,1713300848864,172.91765752,0.00014159,2]
[322791420,1713300866874,172.91765752,0.00014159,2]
[322791421,1713300868472,46807.19560586,0.00015,2]
[322791422,1713300868494,4472.83590608,0.00015,2]
[322791423,1713300884908,172.91765752,0.00015,2]
[322791424,1713300900909,172.91765752,0.00015,2]
[322791425,1713300922944,172.91765752,0.00015,2]
[322791426,1713300940908,172.91765752,0.00015,2]
[322791427,1713300960907,172.91765752,0.00015,2]
[322791428,1713300978909,172.91765752,0.00015,2]
[322791429,1713300994906,172.91765752,0.00015,2]
[322791430,1713301015103,172.91765752,0.00015,2]
[322791431,1713301032930,223.59959395,0.00015,2]
[322791432,1713301061088,155.0,0.00015,2]
[322791433,1713301081081,155.0,0.00015,2]
[322791434,1713301099075,228.48133583,0.00015,2]
[322791435,1713301256444,168.87,0.00025109,120]
[322791436,1713301259259,523.40353013,0.00032152,30]
[322791437,1713301295112,388.175957,0.00015493,2]
[322791438,1713301312122,686.85,0.00014766,2]
[322791439,1713301352931,363.35522235,0.00032152,30]
[322791440,1713301552492,155.0,0.00032152,30]
[322791441,1713301660833,159.06500516,0.00023,30]
[322791442,1713301670541,645.24728945,0.00032152,30]
[322791443,1713301746832,155.37,0.00024904,120]
[322791444,1713301787379,-155.0,0.00015517,2]
[322791445,1713301787405,-263.53476276,0.00015518,2]
[322791446,1713301787430,-88.67781283,0.00015518,2]
[322791447,1713301825796,687.78,0.00014601,2]
[322791469,1713301832361,-164.35295761,0.00015514,2]
[322791470,1713301832371,-240.05304239,0.00015514,2]
[322791471,1713301832384,-495.89,0.00015514,2]
[322791472,1713301832419,-507.36788458,0.00015514,2]
[322791474,1713301832429,-202.14216056,0.00015514,2]
[322791476,1713301832440,-155.0,0.00015515,2]
[322791478,1713301832449,-1584.38796383,0.00015515,2]
[322791479,1713301832459,-155.0,0.00015516,2]
[322791480,1713301832469,-155.0,0.00015516,2]
[322791481,1713301832479,-2357.76557745,0.00015516,2]
[322791482,1713301832489,-362.90116211,0.00015516,2]
[322791483,1713301832499,-486.86836338,0.00015517,2]
[322791484,1713301832509,-262.04611225,0.00015517,2]
[322791485,1713301832519,-175.38194581,0.00015518,2]
[322791486,1713301832529,-1775.0,0.0001552,2]
[322791487,1713301832539,-150.0,0.00015523,2]
[322791488,1713301832548,-943.47065345,0.000156,2]
[322791489,1713301832560,-378.438,0.000156,2]
[322791490,1713301832577,-484.32,0.000156,2]
[322791491,1713301832595,-517.9614323,0.000156,2]
[322791492,1713301832607,-803.1102161,0.000156,2]
[322791493,1713301832619,-16.82112613,0.000156,2]
[322791494,1713301832628,-499.99,0.00015835,2]
[322791495,1713301832639,-150.99,0.00015836,2]
[322791496,1713301832649,-497.60599488,0.00015924,2]
[322791497,1713301832660,-1272.24,0.00015924,2]
[322791498,1713301832672,-2381.0490285,0.00015924,2]
[322791499,1713301832684,-582.16471913,0.00015924,2]
[322791500,1713301832694,-3399.3221672,0.00016527,2]
[322791502,1713301832706,-5287.47149266,0.00016527,2]
[322791504,1713301832719,-576.32490571,0.00016527,2]
[322791508,1713301832742,-685.05424735,0.00016527,2]
[322791509,1713301832754,-4295.45718708,0.00016527,2]
[322791510,1713301832764,-23.10293816,0.00016603,2]
[322791512,1713301832776,-132.26706184,0.00016603,2]
[322791513,1713301832785,-233.38,0.0001662,2]
[322791515,1713301832795,-299.43763641,0.00016656,2]
[322791518,1713301832832,-200.56236359,0.00016656,2]
[322791519,1713301832843,-200.0,0.00016707,2]
[322791520,1713301832853,-30.62276609,0.00016717,2]
[322791523,1713301837985,-469.37723391,0.00016717,2]
[322791524,1713301838346,-386.68976609,0.00016739,2]
[322791525,1713301838370,-866.10267295,0.00016739,2]
[322791526,1713301838385,-599.62756096,0.00016739,2]
[322791527,1713301838396,-168.87,0.00016739,2]
[322791528,1713301838407,-339.86,0.00016745,2]
[322791529,1713301838417,-462.91844024,0.00016747,2]
[322791530,1713301838429,-537.08155976,0.00016747,2]
[322791531,1713301838440,-788.73064566,0.00016787,2]
[322791534,1713301838469,-2022.6949102,0.00016787,2]
[322791536,1713301838480,-729.82228752,0.00016787,2]
[322791538,1713301838491,-500.51215662,0.00016787,2]
[322791540,1713301838500,-339.86,0.00016791,2]
[322791542,1713301838510,-200.0,0.00016792,2]
[322791545,1713301838519,-339.86,0.00016837,2]
[322791548,1713301838528,-687.78,0.00016865,2]
[322791550,1713301838538,-339.86,0.00016883,2]
[322791551,1713301838548,-786.22,0.00016923,2]
[322791552,1713301838557,-272.56813009,0.00016929,2]
[322791553,1713301838578,-67.29186991,0.00016929,2]
[322791554,1713301838587,-339.86,0.00016975,2]
[322791555,1713301838597,-339.86,0.00017021,2]
[322791557,1713301838606,-339.86,0.00017066,2]
[322791558,1713301838615,-210.0,0.00017075,2]
[322791560,1713301838625,-339.86,0.00017112,2]
[322791561,1713301838634,-153.32,0.00017123,2]
[322791562,1713301838643,-339.86,0.00017158,2]
[322791563,1713301838652,-339.86,0.00017204,2]
[322791564,1713301838661,-339.86,0.0001725,2]
[322791565,1713301838669,-339.86,0.00017296,2]
[322791566,1713301838678,-339.86,0.00017342,2]
[322791567,1713301838687,-339.86,0.00017388,2]
[322791568,1713301838696,-339.86,0.00017434,2]
[322791569,1713301838705,-339.86,0.0001748,2]
[322791570,1713301838714,-339.86,0.00017526,2]
[322791571,1713301838723,-339.86,0.00017572,2]
[322791572,1713301838732,-339.86,0.00017617,2]
[322791573,1713301838741,-4331.81952334,0.00017728,2]
[322791574,1713301838754,-1701.92047666,0.00017728,2]
[322791575,1713301838763,-199.81,0.00017728,2]
[322791576,1713301838774,-4363.81955879,0.00017728,2]
[322791577,1713301838786,-4409.52044121,0.00017728,2]
[322791578,1713301838796,-2171.0,0.000178,2]
[322791579,1713301838805,-591.14,0.00017882,2]
[322791580,1713301838814,-591.14,0.00017886,2]
[322791581,1713301838825,-591.14,0.00017891,2]
[322791582,1713301838834,-591.14,0.00017896,2]
[322791583,1713301838843,-591.14,0.00017901,2]
[322791584,1713301838852,-591.14,0.00017905,2]
[322791585,1713301838861,-591.14,0.0001791,2]
[322791586,1713301838871,-591.14,0.00017915,2]
[322791587,1713301838881,-591.14,0.00017919,2]
[322791588,1713301838890,-591.14,0.00017924,2]
[322791589,1713301838899,-591.14,0.00017929,2]
[322791590,1713301838908,-591.14,0.00017934,2]
[322791591,1713301838917,-591.14,0.00017938,2]
[322791592,1713301838926,-591.14,0.00017943,2]
[322791593,1713301838934,-591.14,0.00017948,2]
[322791594,1713301838944,-591.14,0.00017952,2]
[322791595,1713301838953,-591.14,0.00017957,2]
[322791596,1713301838962,-591.14,0.00017962,2]
[322791597,1713301838970,-591.14,0.00017967,2]
[322791598,1713301838981,-591.14,0.00017971,2]
[322791599,1713301838990,-155.0,0.00018014,2]
[322791600,1713301839000,-214.0,0.00018015,2]
[322791601,1713301839010,-1638.0,0.00018015,2]
[322791602,1713301839018,-355.0,0.00018015,2]
[322791603,1713301839027,-443.0,0.00018015,2]
[322791604,1713301839037,-2703.0,0.00018017,2]
[322791605,1713301839046,-1848.537,0.00018017,2]
[322791606,1713301839055,-1054.0,0.00018017,2]
[322791607,1713301839065,-1000.0,0.0001815,2]
[322791608,1713301839078,-1392.0,0.00018248,2]
[322791609,1713301839088,-461.0,0.00018248,2]
[322791610,1713301839097,-968.0,0.00018248,2]
[322791611,1713301839106,-2292.0,0.00018248,2]
[322791612,1713301839114,-1254.0,0.00018248,2]
[322791613,1713301839123,-1228.0,0.00018248,2]
[322791614,1713301839132,-541.0,0.00018248,2]
[322791615,1713301839141,-609.0,0.00018248,2]
[322791616,1713301839149,-436.0,0.00018248,2]
[322791617,1713301839158,-728.0,0.00018248,2]
[322791618,1713301839166,-1949.0,0.00018248,2]
[322791619,1713301839175,-1472.0,0.00018248,2]
[322791620,1713301839184,-1079.62021679,0.00018248,2]
[322791621,1713301839197,-294.18691223,0.00018248,2]
[322791622,1713301839209,-1068.19287098,0.00018248,2]
[322791623,1713301839219,-399.0,0.00018248,2]
[322791624,1713301839228,-3078.0,0.00018248,2]
[322791625,1713301839237,-1000.0,0.0001825,2]
[322791626,1713301839246,-1000.0,0.0001835,2]
[322791627,1713301839256,-1000.0,0.0001855,2]
[322791628,1713301839266,-25.15473414,0.0001868,2]
[322791633,1713301840800,-2936.09954424,0.0001868,2]
[322791634,1713301840812,-595.99694528,0.0001868,2]
[322791635,1713301840825,-3383.95358767,0.0001868,2]
[322791636,1713301840842,-379.88735711,0.0001868,2]
[322791637,1713301840880,-45955.9814627,0.0001868,2]
[322791638,1713301840892,-1091.12481949,0.0001868,2]
[322791639,1713301840904,-476.56979241,0.0001868,2]
[322791640,1713301840962,-611.2045331,0.0001868,2]
[322791641,1713301840973,-514.19178915,0.0001868,2]
[322791642,1713301840984,-1922.15872711,0.0001868,2]
[322791643,1713301840996,-2485.32008367,0.0001868,2]
[322791644,1713301841008,-615.41880145,0.0001868,2]
[322791645,1713301841020,-647.56071899,0.0001868,2]
[322791646,1713301841032,-343.23861721,0.0001868,2]
[322791647,1713301841044,-15564.67890141,0.0001868,2]
[322791648,1713301841053,-4191.3354,0.0001868,2]
[322791649,1713301841063,-251.27451082,0.0001869,2]
[322791650,1713301841076,-1000.0,0.000187,2]
[322791651,1713301841086,-1000.0,0.0001875,2]
[322791652,1713301841095,-2723.2487,0.0001878,2]
[322791653,1713301841105,-100000.0,0.0001878,2]
[322791654,1713301841114,-210.88515724,0.0001878,2]
[322791655,1713301841124,-10874.1571,0.0001878,2]
[322791656,1713301841133,-500.0,0.0001878,2]
[322791657,1713301841142,-1000.0,0.0001878,2]
[322791658,1713301841152,-152.87406506,0.0001878,2]
[322791659,1713301841161,-160.97458771,0.00018782,2]
[322791660,1713301841170,-171.25463459,0.00018782,2]
[322791661,1713301841180,-168.22213843,0.00018787,2]
[322791662,1713301841189,-21635.96397958,0.00018787,2]
[322791663,1713301841205,-190.2507398,0.00018788,2]
[322791664,1713301841249,-599.0425219,0.00018788,2]
[322791665,1713301841258,-25716.38161694,0.000188,2]
[322791666,1713301841267,-2861.97390013,0.00018816,2]
[322791667,1713301841279,-695.27732345,0.00018816,2]
[322791668,1713301841288,-73991.28919138,0.00018816,2]
[322791669,1713301841298,-210.88515723,0.00018838,2]
[322791670,1713301841307,-155.73755,0.0001884,2]
[322791671,1713301841316,-1000.0,0.0001884,2]
[322791672,1713301841330,-156.51142689,0.0001887,2]
[322791673,1713301841341,-156.51142689,0.0001887,2]
[322791674,1713301841350,-40780.1166405,0.00018875,2]
[322791675,1713301841360,-1540.6511119,0.00018875,2]
[322791676,1713301841369,-3521.1526001,0.00018875,2]
[322791677,1713301841378,-155.0,0.00018878,2]
[322791678,1713301841386,-375.99594554,0.00018878,2]
[322791679,1713301841396,-680.8066243,0.00018878,2]
[322791680,1713301841405,-8886.16256706,0.00018878,2]
[322791681,1713301841415,-155.0,0.00018878,2]
[322791682,1713301841425,-1058.36793939,0.00018878,2]
[322791683,1713301841435,-155.39757706,0.00018878,2]
[322791684,1713301841445,-221.5225791,0.00018878,2]
[322791685,1713301841454,-207.28883958,0.00018878,2]
[322791686,1713301841464,-301.07124124,0.00018878,2]
[322791687,1713301841473,-166.94364196,0.00018878,2]
[322791688,1713301841483,-155.0,0.00018878,2]
[322791689,1713301841492,-155.0,0.00018878,2]
[322791690,1713301841502,-155.0,0.00018878,2]
[322791691,1713301841512,-155.0,0.00018878,2]
[322791692,1713301841522,-353.57414038,0.00018878,2]
[322791693,1713301841531,-545.63051093,0.00018878,2]
[322791694,1713301841540,-704.18979387,0.00018878,2]
[322791695,1713301841549,-155.30008766,0.00018878,2]
[322791696,1713301841559,-300.82698551,0.00018878,2]
[322791697,1713301841569,-397.3328317,0.00018878,2]
[322791698,1713301841580,-1653.06228643,0.00018878,2]
[322791699,1713301841589,-363.00732385,0.00018878,2]
[322791700,1713301841598,-155.17839332,0.00018878,2]
[322791701,1713301841608,-155.0,0.00018878,2]
[322791702,1713301841617,-342.94151451,0.00018878,2]
[322791703,1713301841626,-325.32875202,0.00018878,2]
[322791704,1713301841636,-155.0,0.00018878,2]
[322791705,1713301841647,-155.0,0.00018878,2]
[322791706,1713301841656,-174.16559919,0.00018878,2]
[322791707,1713301841666,-5540.1843977,0.00018878,2]
[322791708,1713301841675,-194.18145296,0.00018878,2]
[322791709,1713301841684,-155.0,0.00018878,2]
[322791710,1713301841694,-267.13908293,0.00018878,2]
[322791711,1713301841703,-296.33767696,0.00018878,2]
[322791712,1713301841712,-407.97409068,0.00018878,2]
[322791713,1713301841721,-206.54437025,0.00018878,2]
[322791714,1713301841730,-408.60422186,0.00018878,2]
[322791715,1713301841739,-200.07388486,0.00018878,2]
[322791716,1713301841750,-526.2102462,0.00018878,2]
[322791717,1713301841759,-16977.97448994,0.00018878,2]
[322791718,1713301841769,-262.78844002,0.00018878,2]
[322791719,1713301841778,-156.3850435,0.00018878,2]
[322791720,1713301841787,-155.00005026,0.00018879,2]
[322791721,1713301841797,-1969.2080462,0.00018879,2]
[322791722,1713301841807,-180.68788228,0.00018879,2]
[322791723,1713301841816,-157.40175635,0.00018879,2]
[322791724,1713301841828,-597.96032771,0.00018879,2]
[322791725,1713301841837,-2175.08703921,0.00018879,2]
[322791726,1713301841847,-920.96330323,0.0001888,2]
[322791727,1713301841856,-202693.98659396,0.0001888,2]
[322791728,1713301841869,-7058.3,0.0001888,2]
[322791729,1713301841880,-252.43701998,0.0001888,2]
[322791730,1713301841891,-696.2,0.0001888,2]
[322791731,1713301841903,-3531.82491885,0.0001888,2]
[322791732,1713301841915,-4896.92,0.0001888,2]
[322791733,1713301841926,-671.30727191,0.0001888,2]
[322791734,1713301841937,-662.47809905,0.0001888,2]
[322791768,1713301843068,-251.06618023,0.0001888,2]
[322791769,1713301843121,-278.05523846,0.0001888,2]
[322791770,1713301843132,-34258.0187931,0.0001888,2]
[322791771,1713301843144,-3371.4294,0.0001888,2]
[322791772,1713301843157,-646.38980015,0.0001888,2]
[322791773,1713301843342,-618.71071819,0.00018879,2]
[322791774,1713301843351,-30392.24818181,0.0001888,2]
[322791775,1713301843362,-1104.6360013,0.0001888,2]
[322791781,1713301843692,-271.92414432,0.0001888,2]
[322791782,1713301843703,-13990.75188998,0.0001888,2]
[322791783,1713301843715,-1962.2339759,0.0001888,2]
[322791784,1713301843726,-1883.65102,0.0001888,2]
[322791785,1713301843737,-548.7758501,0.0001888,2]
[322791786,1713301843748,-1838.75385252,0.0001888,2]
[322791787,1713301843759,-298.774,0.0001888,2]
[322791803,1713301846054,-303.23383884,0.00018879,2]
[322791804,1713301846065,-155.2401728,0.00018879,2]
[322791805,1713301846076,-2354.33560631,0.00018879,2]
[322791806,1713301846086,-239.68779562,0.00018879,2]
[322791807,1713301846096,-3348.31855033,0.0001888,2]
[322791808,1713301846107,-286606.42046711,0.0001888,2]
[322791809,1713301846119,-14522.91221009,0.0001888,2]
[322791810,1713301846130,-626.08111507,0.0001888,2]
[322791811,1713301846142,-6231.59735195,0.0001888,2]
[322791812,1713301846153,-1309.99765462,0.0001888,2]
[322791813,1713301846232,-175245.34508947,0.0001888,2]
[322791814,1713301846244,-18560.266541,0.0001888,2]
[322791815,1713301846345,-28264.79068205,0.0001888,2]
[322791816,1713301846357,-38828.63791428,0.0001888,2]
[322791817,1713302129960,500.0,0.00032148,30]
[322791818,1713302130079,595.33376655,0.00032148,30]
[322791819,1713302186086,500.0,0.00032148,30]
[322791820,1713302186347,602.23213582,0.00032148,30]
[322791821,1713302188731,156.03332432,0.00032148,30]
[322791822,1713302190995,500.0,0.00032148,30]
[322791823,1713302191372,500.0,0.00032148,30]
[322791824,1713302191967,500.0,0.00032148,30]
[322791825,1713302194058,500.0,0.00032148,30]
[322791826,1713302194333,500.0,0.00032148,30]
[322791827,1713302194622,500.0,0.00032148,30]
[322791828,1713302194929,500.0,0.00032148,30]
[322791829,1713302195210,484.04218103,0.00032148,30]
[322791830,1713302345869,500.0,0.00032148,30]
[322791831,1713302346127,500.0,0.00032148,30]
[322791832,1713302346400,500.0,0.00032148,30]
[322791833,1713302346674,500.0,0.00032148,30]
[322791834,1713302346938,500.0,0.00032148,30]
[322791835,1713302347245,500.0,0.00032148,30]
[322791836,1713302347500,500.0,0.00032148,30]
[322791837,1713302347787,500.0,0.00032148,30]
[322791838,1713302348077,500.0,0.00032148,30]
[322791839,1713302348376,500.0,0.00032148,30]
[322791840,1713302348678,500.0,0.00032148,30]
[322791841,1713302348941,500.0,0.00032148,30]
[322791842,1713302349206,500.0,0.00032148,30]
[322791843,1713302349476,500.0,0.00032148,30]
[322791844,1713302349746,500.0,0.00032148,30]
[322791845,1713302349999,500.0,0.00032148,30]
[322791846,1713302350286,500.0,0.00032148,30]
[322791847,1713302350899,500.0,0.00032148,30]
[322791848,1713302351215,500.0,0.00032148,30]
[322791849,1713302351509,500.0,0.00032148,30]
[322791850,1713302351784,500.0,0.00032148,30]
[322791851,1713302352058,500.0,0.00032148,30]
[322791852,1713302352338,250.0183047,0.00032148,30]
[322791853,1713302354327,826.29,0.00032148,30]
[322791854,1713302354591,826.29,0.00032148,30]
[322791855,1713302354890,826.29,0.00032148,30]
[322791856,1713302355168,826.29,0.00032148,30]
[322791857,1713302355456,826.29,0.00032148,30]
[322791858,1713302355754,826.29,0.00032148,30]
[322791859,1713302356011,826.29,0.00032148,30]
[322791860,1713302356333,826.29,0.00032148,30]
[322791861,1713302356613,701.10621036,0.00032148,30]
[322791862,1713302945143,-1791.1287,0.00015773,2]
[322791863,1713302945165,-202.14216056,0.00015866,2]
[322791864,1713302945185,-244.25184656,0.00015867,2]
[322791865,1713302945205,-357.09229288,0.00015873,2]
[322791875,1713303032134,-990.04107208,0.00015873,2]
[322791876,1713303032145,-1033.91566354,0.00015873,2]
[322791877,1713303032154,-619.0,0.00015986,2]
[322791878,1713303032163,-762.0,0.000178,2]
[322791879,1713303032174,-2693.49,0.00017877,2]
[322791880,1713303032183,-1000.0,0.00017892,2]
[322791881,1713303032192,-393.11,0.00017892,2]
[322791882,1713303032201,-17300.0,0.00018,2]
[322791883,1713303032211,-155.0,0.00018,2]
[322791884,1713303032223,-590.0,0.00018055,2]
[322791885,1713303032232,-619.0,0.0001825,2]
[322791886,1713303032242,-436.0,0.00018354,2]
[322791887,1713303032252,-479.583,0.00018354,2]
[322791888,1713303032261,-1949.0,0.00018354,2]
[322791889,1713303032271,-399.0,0.00018354,2]
[322791890,1713303032280,-665.957,0.00018354,2]